fUSD/lending_fUSD_20240517
["ID","MTS","AMOUNT","RATE_DAILY","PERIOD"]
[327241953,1715915446873,-270.22399122,0.00012994,2]
[327241954,1715915446884,-3064.76786537,0.00012994,2]
[327241955,1715915446894,-155.86399785,0.00012994,2]
[327241956,1715915446903,-4945.86112916,0.00012994,2]
[327241957,1715915446914,-500.0,0.00012994,2]
[327241958,1715915446925,-225.31504134,0.00012994,2]
[327241959,1715915446935,-500.0,0.00012994,2]
[327241960,1715915446946,-500.0,0.00012994,2]
[327241961,1715915446955,-500.0,0.00012994,2]
[327241964,1715915446964,-500.0,0.00012994,2]
[327241967,1715915446973,-500.0,0.00012994,2]
[327241970,1715915446982,-500.0,0.00012994,2]
[327241973,1715915446991,-563.7606142,0.00012994,2]
[327241976,1715915447000,-567.55189989,0.00012994,2]
[327241979,1715915447009,-500.0,0.00012994,2]
[327241982,1715915447018,-243.89283519,0.00012995,2]
[327241985,1715915447027,-500.0,0.00012995,2]
[327241988,1715915447036,-286.59340608,0.00012995,2]
[327241991,1715915447046,-500.0,0.00012995,2]
[327241994,1715915447058,-500.0,0.00012995,2]
[327241997,1715915447067,-500.0,0.00012995,2]
[327242000,1715915447076,-156.19676474,0.00012995,2]
[327242003,1715915447085,-500.0,0.00012995,2]
[327242005,1715915447095,-353.76939049,0.00012995,2]
[327242007,1715915447106,-547.19,0.00012995,2]
[327242009,1715915447116,-500.0,0.00012995,2]
[327242011,1715915447126,-500.0,0.00012995,2]
[327242013,1715915447140,-500.0,0.00012995,2]
[327242014,1715915447150,-542.28257354,0.00012995,2]
[327242015,1715915447160,-500.0,0.00012995,2]
[327242016,1715915447169,-629.80290362,0.00012995,2]
[327242017,1715915447178,-500.0,0.00012995,2]
[327242018,1715915447189,-500.0,0.00012995,2]
[327242019,1715915447198,-500.0,0.00012995,2]
[327242020,1715915447208,-500.0,0.00012995,2]
[327242021,1715915447217,-500.0,0.00012995,2]
[327242022,1715915447227,-515.64354084,0.00012995,2]
[327242023,1715915447236,-811.67,0.00012995,2]
[327242024,1715915447246,-811.67,0.00012995,2]
[327242025,1715915447255,-811.67,0.00012995,2]
[327242026,1715915447264,-151.37,0.00012995,2]
[327242027,1715915447273,-500.0,0.00012995,2]
[327242028,1715915447282,-500.0,0.00012995,2]
[327242029,1715915447292,-500.0,0.00012995,2]
[327242030,1715915447302,-500.0,0.00012995,2]
[327242031,1715915447311,-500.0,0.00012995,2]
[327242032,1715915447320,-500.0,0.00012995,2]
[327242033,1715915447329,-500.0,0.00012995,2]
[327242034,1715915447339,-500.0,0.00012995,2]
[327242035,1715915447348,-500.0,0.00012995,2]
[327242036,1715915447357,-500.0,0.00012995,2]
[327242037,1715915447367,-200.0178189,0.00012995,2]
[327242038,1715915447376,-500.0,0.00012995,2]
[327242039,1715915447385,-500.0,0.00012995,2]
[327242040,1715915447394,-20260.76616764,0.00012996,2]
[327242041,1715915447410,-46425.82174854,0.00012996,2]
[327242042,1715915447422,-800.20440538,0.00012996,2]
[327242043,1715915447433,-805.291941,0.00012996,2]
[327242044,1715915447446,-655.95383764,0.00012996,2]
[327242045,1715915447457,-80803.06885683,0.00012996,2]
[327242046,1715915447468,-942.66174752,0.00012996,2]
[327242047,1715915447483,-655.009987,0.00012996,2]
[327242048,1715915447493,-25848.4982993,0.00012996,2]
[327242049,1715915447505,-502.26296731,0.00012996,2]
[327242053,1715916504401,177.63,8.593e-05,2]
[327242054,1715916516309,310.46593727,0.0002308,120]
[327242055,1715916631728,-313.76801603,8.643e-05,2]
[327242056,1715916631738,-656.27275998,8.644e-05,2]
[327242058,1715916631749,-634.76808037,8.645e-05,2]
[327242060,1715916631760,-2796.13162149,8.645e-05,2]
[327242063,1715916631770,-2844.3,8.919e-05,2]
[327242066,1715916631779,-350.138049,0.00010678,2]
[327242068,1715916631788,-517.2873913,0.0001073,2]
[327242070,1715916631798,-548.07,0.00010731,2]
[327242072,1715916631808,-250.0,0.00010737,2]
[327242073,1715916631817,-250.0,0.00010743,2]
[327242074,1715916631827,-23890.0,0.00010746,2]
[327242075,1715916631836,-178.62,0.00010762,2]
[327242076,1715916631846,-1847.87,0.00010808,2]
[327242077,1715916631856,-176.53,0.00010873,2]
[327242078,1715916631865,-150.0,0.00010959,2]
[327242079,1715916631875,-581.38,0.00010959,2]
[327242080,1715916631884,-484.48,0.00010959,2]
[327242081,1715916631893,-403.74,0.00010959,2]
[327242082,1715916631902,-336.45,0.00010959,2]
[327242083,1715916631911,-280.37,0.00010959,2]
[327242084,1715916631920,-233.64,0.00010959,2]
[327242085,1715916631931,-233.64,0.00010959,2]
[327242086,1715916631941,-233.64,0.00010959,2]
[327242087,1715916631951,-233.64,0.00010959,2]
[327242088,1715916631960,-600.0,0.00010978,2]
[327242089,1715916631970,-1192.03,0.00010994,15]
[327242090,1715916631979,-200.0,0.00011,2]
[327242091,1715916631988,-2844.3,0.00011183,2]
[327242092,1715916631997,-185.535082,0.00011233,2]
[327242093,1715916632007,-177.08,0.00011275,2]
[327242094,1715916632017,-202.3,0.00011377,2]
[327242095,1715916632026,-185.535082,0.0001142,2]
[327242096,1715916632035,-185.535082,0.00011608,2]
[327242097,1715916632045,-300.47485326,0.00011695,2]
[327242098,1715916632054,-13877.109,0.00011695,2]
[327242099,1715916632063,-185.535082,0.00011795,2]
[327242100,1715916632072,-457.57537053,0.000118,2]
[327242101,1715916632081,-170.27,0.00011922,2]
[327242102,1715916632090,-5000.0,0.00012,2]
[327242103,1715916632099,-19626.96507151,0.00012,2]
[327242104,1715916632108,-548.07,0.00012073,2]
[327242105,1715916632117,-178.62,0.00012107,2]
[327242106,1715916632126,-180.0,0.00012175,2]
[327242107,1715916632135,-1250.0,0.000123,2]
[327242108,1715916632146,-600.0,0.0001235,2]
[327242109,1715916632156,-3610.911,0.00012378,2]
[327242110,1715916632166,-8997.2974,0.00012379,2]
[327242111,1715916632177,-2500.0,0.00012379,2]
[327242112,1715916632185,-1000.0,0.000124,2]
[327242113,1715916632195,-10934.65564137,0.000124,2]
[327242114,1715916632206,-158.74,0.00012469,2]
[327242115,1715916632215,-500.0,0.00012478,2]
[327242116,1715916632225,-553.60922443,0.00012478,2]
[327242117,1715916632236,-500.0,0.00012478,2]
[327242118,1715916632246,-500.0,0.00012478,2]
[327242119,1715916632256,-500.0,0.00012478,2]
[327242120,1715916632266,-524.84622039,0.00012478,2]
[327242121,1715916632275,-465.05393683,0.00012478,2]
[327242122,1715916632284,-304.97273733,0.00012478,2]
[327242123,1715916632293,-919.47,0.00012478,2]
[327242124,1715916632303,-608.76,0.00012478,2]
[327242125,1715916632312,-500.0,0.00012478,2]
[327242126,1715916632321,-500.0,0.00012478,2]
[327242127,1715916632331,-397.28309624,0.00012478,2]
[327242128,1715916632340,-500.0,0.00012478,2]
[327242129,1715916632349,-500.0,0.00012478,2]
[327242130,1715916632359,-500.0,0.00012478,2]
[327242131,1715916632368,-500.0,0.00012478,2]
[327242132,1715916632378,-500.0,0.00012478,2]
[327242133,1715916632387,-500.0,0.00012478,2]
[327242134,1715916632397,-500.0,0.00012478,2]
[327242135,1715916632406,-500.0,0.00012478,2]
[327242136,1715916632415,-500.0,0.00012478,2]
[327242137,1715916632426,-1480.55,0.00012478,2]
[327242138,1715916632435,-147442.8223,0.00012479,2]
[327242139,1715916632444,-1000.0,0.00012479,2]
[327242140,1715916632453,-252.32718806,0.000125,2]
[327242141,1715916632463,-7500.0,0.00012579,2]
[327242142,1715916632472,-507.55501619,0.00012579,2]
[327242143,1715916632481,-1174.47,0.00012579,2]
[327242144,1715916632490,-500.0,0.00012579,2]
[327242145,1715916632500,-500.0,0.00012579,2]
[327242146,1715916632509,-500.0,0.00012579,2]
[327242147,1715916632518,-1000.0,0.000126,2]
[327242148,1715916632529,-156.0,0.00012679,2]
[327242149,1715916632540,-162.958,0.00012679,2]
[327242150,1715916632549,-438.0,0.00012679,2]
[327242151,1715916632565,-421.527,0.00012679,2]
[327242152,1715916632575,-810.0,0.00012679,2]
[327242153,1715916632584,-150.0,0.00012679,2]
[327242154,1715916632593,-2351.0,0.00012679,2]
[327242155,1715916632604,-150.344,0.00012679,2]
[327242156,1715916632613,-1646.0,0.00012679,2]
[327242157,1715916632622,-215.0,0.00012679,2]
[327242158,1715916632633,-3157.0,0.00012679,2]
[327242159,1715916632642,-1138.0,0.00012679,2]
[327242160,1715916632651,-5750.0,0.00012679,2]
[327242161,1715916632661,-5914.0,0.00012679,2]
[327242162,1715916632670,-289.0,0.00012679,2]
[327242163,1715916632680,-37858.0,0.00012679,2]
[327242164,1715916632690,-2158.0,0.00012679,2]
[327242165,1715916632699,-1173.538,0.00012679,2]
[327242166,1715916632708,-853.33,0.0001269,2]
[327242167,1715916632718,-197.62352658,0.00012699,2]
[327242168,1715916632728,-3000.0,0.00012707,2]
[327242169,1715916632737,-3000.0,0.00012722,2]
[327242170,1715916632747,-3000.0,0.00012724,2]
[327242171,1715916632756,-12651.55997179,0.0001275,2]
[327242172,1715916632765,-3000.0,0.00012752,2]
[327242173,1715916632775,-3000.0,0.00012757,2]
[327242174,1715916632784,-3692.9732,0.00012799,2]
[327242175,1715916632794,-500.0,0.00012799,2]
[327242176,1715916632804,-500.0,0.00012799,2]
[327242177,1715916632813,-500.0,0.00012799,2]
[327242178,1715916632823,-500.0,0.00012799,2]
[327242179,1715916632832,-919.47,0.00012799,2]
[327242180,1715916632842,-608.76,0.00012799,2]
[327242181,1715916632851,-611.39,0.00012799,2]
[327242182,1715916632860,-500.0,0.00012799,2]
[327242183,1715916632870,-500.0,0.00012799,2]
[327242184,1715916632879,-500.0,0.00012799,2]
[327242185,1715916632888,-500.0,0.00012799,2]
[327242186,1715916632898,-500.0,0.00012799,2]
[327242187,1715916632907,-500.0,0.00012799,2]
[327242188,1715916632916,-407.84075311,0.00012799,2]
[327242189,1715916632927,-500.0,0.00012799,2]
[327242190,1715916632936,-500.0,0.00012799,2]
[327242191,1715916632945,-500.0,0.00012799,2]
[327242192,1715916632955,-1480.55,0.00012799,2]
[327242193,1715916632964,-202.3,0.00012799,2]
[327242194,1715916632973,-15624.0079,0.000128,2]
[327242195,1715916632982,-53279.75558291,0.000128,2]
[327242196,1715916633021,-7057.21140862,0.000128,2]
[327242198,1715916637935,-150.0,0.00011408,2]
[327242199,1715916637945,-150.0,0.00011553,2]
[327242200,1715916637955,-150.0,0.00011697,2]
[327242201,1715916637966,-150.0,0.00011842,2]
[327242204,1715916637975,-150.0,0.00011987,2]
[327242206,1715916637985,-150.0,0.00012132,2]
[327242207,1715916637996,-150.0,0.00012276,2]
[327242208,1715916638005,-371.0,0.00012478,2]
[327242209,1715916638224,-129.0,0.00012478,2]
[327242210,1715916638234,-959.0,0.0001261,2]
[327242211,1715916638244,-1297.01591777,0.00012679,2]
[327242212,1715916638257,-2593.10634061,0.00012679,2]
[327242213,1715916638555,-2598.47316635,0.00012679,2]
[327242321,1715916640293,-362.99673982,0.00012679,2]
[327242322,1715916640306,-534.00326018,0.00012679,2]
[327242323,1715916640316,-6692.97543778,0.00012679,2]
[327242324,1715916640329,-322.16998885,0.00012679,2]
[327242325,1715916640341,-3056.75,0.00012679,2]
[327242326,1715916640534,-332.88138164,0.00012679,2]
[327242327,1715916640547,-1956.49989621,0.00012679,2]
[327242328,1715916640564,-4327.46792342,0.00012679,2]
[327242329,1715916640580,-2642.15021336,0.00012679,2]
[327242453,1715916642808,-467.32,0.00010959,2]
[327242456,1715916642817,-987.68,0.00012659,2]
[327242459,1715916642830,-803.32,0.00012659,2]
[327242461,1715916642840,-912.92579306,0.00012679,2]
[327242464,1715916642852,-862.0099998,0.00012679,2]
[327242469,1715916643052,-3465.7968536,0.00012679,2]
[327242470,1715916643064,-1376.75454,0.00012679,2]
[327242471,1715916643079,-14223.04090144,0.00012679,2]
[327242472,1715916643088,-959.0,0.0001274,2]
[327242473,1715916643098,-500.0,0.00012799,2]
[327242474,1715916643108,-78352.70983999,0.000128,2]
[327242475,1715916643120,-6574.58222987,0.000128,2]
[327242476,1715916643142,-5395.91926725,0.000128,2]
[327242507,1715916645957,-2350.30716957,0.00012067,2]
[327242508,1715916645967,-1261.0,0.00012659,2]
[327242509,1715916645977,-36657.11607136,0.000128,2]
[327242510,1715916645987,-500.0,0.00012841,2]
[327242511,1715916645997,-158.74,0.00012843,2]
[327242512,1715916646007,-500.0,0.00012849,2]
[327242513,1715916646016,-4895.0,0.00012853,2]
[327242514,1715916646026,-500.0,0.00012858,2]
[327242515,1715916646036,-500.0,0.00012867,2]
[327242516,1715916646046,-959.0,0.0001287,2]
[327242517,1715916646056,-155.0,0.00012876,2]
[327242518,1715916646066,-500.0,0.00012876,2]
[327242519,1715916646076,-500.0,0.00012876,2]
[327242520,1715916646086,-502.60750869,0.00012876,2]
[327242521,1715916646096,-3624.221,0.00012877,2]
[327242522,1715916646107,-500.0,0.00012885,2]
[327242523,1715916646116,-270.40753073,0.0001289,2]
[327242524,1715916646127,-270.40753072,0.00012893,2]
[327242525,1715916646136,-500.0,0.00012893,2]
[327242526,1715916646146,-1000.0,0.00012896,2]
[327242527,1715916646155,-205.210849,0.00012896,2]
[327242528,1715916646165,-500.0,0.00012896,2]
[327242529,1715916646174,-270.40753072,0.00012896,2]
[327242530,1715916646187,-1174.47,0.00012898,2]
[327242531,1715916646197,-500.0,0.00012898,2]
[327242532,1715916646207,-1174.47,0.00012899,2]
[327242533,1715916646217,-500.0,0.00012899,2]
[327242560,1715916646441,-500.0,0.00012899,2]
[327242561,1715916646451,-7130.46207914,0.000129,2]
[327242563,1715916646460,-500.0,0.00012902,2]
[327242565,1715916646470,-500.0,0.00012911,2]
[327242567,1715916646480,-158.74,0.00012986,2]
[327242569,1715916646489,-158.74,0.00012989,2]
[327242571,1715916646499,-500.0,0.00012989,2]
[327242573,1715916646508,-919.47,0.00012989,2]
[327242575,1715916646518,-608.76,0.00012989,2]
[327242577,1715916646528,-500.0,0.00012989,2]
[327242578,1715916646537,-500.0,0.00012989,2]
[327242580,1715916646546,-500.0,0.00012989,2]
[327242581,1715916646556,-302.03299575,0.00012989,2]
[327242582,1715916646567,-500.0,0.00012989,2]
[327242583,1715916646577,-500.0,0.00012989,2]
[327242584,1715916646587,-569.99918601,0.00012989,2]
[327242585,1715916646596,-500.0,0.00012989,2]
[327242586,1715916646607,-500.0,0.00012989,2]
[327242587,1715916646616,-1480.55,0.00012989,2]
[327242588,1715916646626,-500.0,0.00012989,2]
[327242589,1715916646635,-158.74,0.0001299,2]
[327242590,1715916646646,-249536.82570304,0.0001299,2]
[327242591,1715916646660,-463.17429696,0.0001299,2]
[327242592,1715916646670,-150.78,0.0001299,2]
[327242593,1715916646679,-150.78,0.0001299,2]
[327242594,1715916646690,-150.78,0.0001299,2]
[327242595,1715916646700,-150.78,0.0001299,2]
[327242596,1715916646710,-150.78,0.0001299,2]
[327242597,1715916646720,-150.78,0.0001299,2]
[327242598,1715916646730,-150.78,0.0001299,2]
[327242599,1715916646740,-150.78,0.0001299,2]
[327242600,1715916646751,-150.78,0.0001299,2]
[327242601,1715916646762,-150.78,0.0001299,2]
[327242602,1715916646772,-150.78,0.0001299,2]
[327242603,1715916646781,-150.78,0.0001299,2]
[327242604,1715916646791,-150.78,0.0001299,2]
[327242605,1715916646800,-150.78,0.0001299,2]
[327242606,1715916646810,-150.78,0.0001299,2]
[327242607,1715916646819,-150.78,0.0001299,2]
[327242608,1715916646829,-78.22676911,0.0001299,2]
[327242609,1715916646850,-72.55323089,0.0001299,2]
[327242610,1715916646859,-150.78,0.0001299,2]
[327242611,1715916646868,-150.78,0.0001299,2]
[327242612,1715916646878,-150.78,0.0001299,2]
[327242613,1715916646887,-150.78,0.0001299,2]
[327242614,1715916646897,-150.78,0.0001299,2]
[327242615,1715916646907,-150.78,0.0001299,2]
[327242616,1715916646918,-150.78,0.0001299,2]
[327242617,1715916646928,-150.78,0.0001299,2]
[327242618,1715916646939,-150.78,0.0001299,2]
[327242619,1715916646949,-150.78,0.0001299,2]
[327242620,1715916646960,-62.67176911,0.0001299,2]
[327242621,1715916646973,-88.10823089,0.0001299,2]
[327242622,1715916646983,-150.78,0.0001299,2]
[327242623,1715916646994,-149.364447,0.0001299,2]
[327242625,1715916763206,168.16203728,0.00015,120]
[327242626,1715916783195,168.16203728,0.00015,120]
[327242627,1715916807187,168.16203728,0.00015,120]
[327242628,1715916829189,168.16203728,0.00015,120]
[327242629,1715916847203,168.16203728,0.00015,120]
[327242630,1715916871195,168.16203728,0.00015,120]
[327242631,1715916889196,168.16203728,0.00015,120]
[327242632,1715916909213,191.24724679,0.00015,120]
[327242640,1715917832664,-313.76801603,8.83e-05,2]
[327242642,1715917832674,-110.77825441,8.831e-05,2]
[327242644,1715917832685,-545.49450557,8.831e-05,2]
[327242646,1715917832695,-1033.0567676,8.833e-05,2]
[327242647,1715917832704,-596.90245639,8.837e-05,2]
[327242649,1715917832738,-435.0,8.837e-05,2]
[327242650,1715917832749,-728.92117432,8.837e-05,2]
[327242651,1715917832764,-1093.49636929,8.837e-05,2]
[327242652,1715917832775,-150.0,9.183e-05,2]
[327242653,1715917832786,-207017.62506829,0.0001038,2]
[327242654,1715917832795,-250.0,0.00010686,2]
[327242655,1715917832804,-250.0,0.00010686,2]
[327242656,1715917832814,-1092.69,0.00010711,15]
[327242657,1715917832824,-1609.37,0.00010726,2]
[327242658,1715917832834,-23890.0,0.00010733,2]
[327242659,1715917832843,-328.84,0.0001075,2]
[327242660,1715917832852,-151.72,0.00010795,2]
[327242661,1715917832861,-3005.0,0.00010959,2]
[327242662,1715917832871,-237.39,0.00011067,2]
[327242663,1715917832880,-716.8,0.00011067,2]
[327242664,1715917832890,-2854.32,0.00011101,2]
[327242665,1715917832899,-171.25,0.00011107,2]
[327242666,1715917832908,-156.622472,0.00011233,2]
[327242667,1715917832917,-511.012332,0.00011233,2]
[327242668,1715917832927,-257.952589,0.00011233,2]
[327242669,1715917832935,-164.52,0.00011358,2]
[327242670,1715917832945,-511.012332,0.00011374,2]
[327242671,1715917832954,-156.622472,0.0001142,2]
[327242672,1715917832963,-511.012332,0.00011514,2]
[327242673,1715917832973,-153.63497143,0.00011605,2]
[327242674,1715917832981,-156.622472,0.00011608,2]
[327242675,1715917832990,-511.012332,0.00011654,2]
[327242676,1715917833000,-2268.08784881,0.000117,2]
[327242677,1715917833009,-156.622472,0.00011795,2]
[327242678,1715917833018,-511.012332,0.00011795,2]
[327242680,1715917833028,-153.63497143,0.00011843,2]
[327242682,1715917833042,-7500.0,0.000119,2]
[327242684,1715917833051,-400.0,0.000119,4]
[327242686,1715917833061,-5000.0,0.00012,2]
[327242688,1715917833070,-19626.96507151,0.00012,2]
[327242690,1715917833079,-900.0,0.00012,4]
[327242692,1715917833088,-174.05,0.00012033,2]
[327242694,1715917833097,-153.63497143,0.00012081,2]
[327242696,1715917833107,-328.84,0.00012093,2]
[327242698,1715917833116,-1300.0,0.000121,4]
[327242701,1715917833125,-163.38,0.00012164,2]
[327242702,1715917833134,-150.0,0.00012164,2]
[327242705,1715917833143,-351.62,0.00012164,2]
[327242706,1715917833152,-150.0,0.00012164,2]
[327242708,1715917833162,-523.76,0.00012164,2]
[327242711,1715917833173,-150.0,0.00012164,2]
[327242712,1715917833182,-150.0,0.00012164,2]
[327242713,1715917833192,-163.38,0.00012164,2]
[327242714,1715917833201,-351.62,0.00012164,2]
[327242715,1715917833210,-150.0,0.00012164,2]
[327242716,1715917833219,-420.52,0.00012164,2]
[327242717,1715917833228,-523.76,0.00012164,2]
[327242718,1715917833237,-420.28,0.00012164,2]
[327242719,1715917833247,-150.0,0.00012164,2]
[327242720,1715917833256,-150.0,0.00012164,2]
[327242721,1715917833265,-227.46,0.00012164,2]
[327242722,1715917833275,-163.38,0.00012164,2]
[327242723,1715917833284,-150.0,0.00012164,2]
[327242724,1715917833293,-150.0,0.00012164,2]
[327242725,1715917833302,-163.38,0.00012164,2]
[327242726,1715917833311,-162.92,0.00012164,2]
[327242727,1715917833321,-150.0,0.00012164,2]
[327242728,1715917833330,-150.6,0.00012192,2]
[327242729,1715917833339,-151.01,0.00012192,2]
[327242730,1715917833348,-527.99,0.00012192,2]
[327242731,1715917833357,-150.53,0.00012192,2]
[327242732,1715917833366,-163.38,0.00012192,2]
[327242733,1715917833375,-351.62,0.00012192,2]
[327242734,1715917833384,-150.56,0.00012192,2]
[327242735,1715917833393,-420.52,0.00012192,2]
[327242736,1715917833403,-1800.0,0.000122,4]
[327242737,1715917833412,-424.06,0.00012278,2]
[327242738,1715917833425,-151.21,0.00012278,2]
[327242739,1715917833434,-150.0,0.00012278,2]
[327242740,1715917833444,-150.0,0.00012278,2]
[327242741,1715917833454,-175.78481673,0.000123,2]
[327242742,1715917833463,-4631.64983735,0.000123,2]
[327242743,1715917833473,-2200.0,0.000123,4]
[327242744,1715917833483,-153.63497143,0.00012319,2]
[327242745,1715917833492,-500.0,0.00012328,2]
[327242746,1715917833502,-539.26060168,0.00012328,2]
[327242747,1715917833511,-500.0,0.00012328,2]
[327242748,1715917833526,-252.23371191,0.00012328,2]
[327242749,1715917833541,-555.84107385,0.00012328,2]
[327242750,1715917833550,-505.50921781,0.00012328,2]
[327242751,1715917833560,-503.34785763,0.00012328,2]
[327242752,1715917833570,-506.77053988,0.00012328,2]
[327242753,1715917833580,-500.0,0.00012328,2]
[327242754,1715917833590,-500.0,0.00012328,2]
[327242755,1715917833599,-500.0,0.00012328,2]
[327242756,1715917833609,-500.0,0.00012328,2]
[327242757,1715917833619,-543.33460436,0.00012328,2]
[327242758,1715917833628,-500.0,0.00012328,2]
[327242759,1715917833638,-500.0,0.00012328,2]
[327242760,1715917833648,-500.0,0.00012328,2]
[327242761,1715917833657,-500.0,0.00012328,2]
[327242762,1715917833670,-600.36662137,0.00012328,2]
[327242763,1715917833680,-586.75952752,0.00012328,2]
[327242764,1715917833689,-579.15800266,0.00012328,2]
[327242765,1715917833698,-500.0,0.00012328,2]
[327242766,1715917833708,-500.0,0.00012328,2]
[327242767,1715917833720,-500.0,0.00012328,2]
[327242768,1715917833730,-500.0,0.00012328,2]
[327242769,1715917833740,-500.0,0.00012328,2]
[327242770,1715917833750,-500.0,0.00012328,2]
[327242771,1715917833760,-500.0,0.00012328,2]
[327242772,1715917833769,-500.0,0.00012328,2]
[327242773,1715917833779,-500.0,0.00012328,2]
[327242774,1715917833789,-500.0,0.00012328,2]
[327242775,1715917833799,-500.0,0.00012328,2]
[327242776,1715917833809,-500.0,0.00012328,2]
[327242777,1715917833818,-500.0,0.00012328,2]
[327242778,1715917833828,-500.0,0.00012328,2]
[327242779,1715917833837,-515.67433396,0.00012328,2]
[327242780,1715917833847,-500.0,0.00012328,2]
[327242781,1715917833857,-500.0,0.00012328,2]
[327242782,1715917833867,-604.8188951,0.00012328,2]
[327242783,1715917833876,-500.0,0.00012328,2]
[327242784,1715917833886,-575.04594619,0.00012328,2]
[327242785,1715917833896,-500.0,0.00012328,2]
[327242786,1715917833906,-500.0,0.00012328,2]
[327242787,1715917833919,-577.77615372,0.00012328,2]
[327242788,1715917833930,-540.5873182,0.00012328,2]
[327242789,1715917833939,-500.0,0.00012328,2]
[327242790,1715917833948,-500.0,0.00012328,2]
[327242791,1715917833957,-500.0,0.00012328,2]
[327242792,1715917833966,-500.0,0.00012328,2]
[327242793,1715917833976,-500.0,0.00012328,2]
[327242794,1715917833985,-500.0,0.00012328,2]
[327242795,1715917833995,-500.0,0.00012328,2]
[327242796,1715917834005,-500.0,0.00012328,2]
[327242797,1715917834015,-500.0,0.00012328,2]
[327242798,1715917834025,-500.0,0.00012328,2]
[327242799,1715917834035,-905.87782146,0.00012328,2]
[327242800,1715917834052,-431.27217854,0.00012328,2]
[327242801,1715917834062,-500.0,0.00012328,2]
[327242802,1715917834071,-181.23,0.00012328,2]
[327242803,1715917834081,-500.0,0.00012328,2]
[327242804,1715917834091,-500.0,0.00012328,2]
[327242805,1715917834100,-500.0,0.00012328,2]
[327242806,1715917834110,-500.0,0.00012328,2]
[327242807,1715917834122,-500.0,0.00012328,2]
[327242808,1715917834132,-500.0,0.00012328,2]
[327242809,1715917834142,-500.0,0.00012328,2]
[327242810,1715917834152,-500.0,0.00012328,2]
[327242811,1715917834169,-804.53,0.00012328,2]
[327242812,1715917834178,-500.0,0.00012328,2]
[327242813,1715917834187,-500.0,0.00012328,2]
[327242814,1715917834196,-532.66,0.00012328,2]
[327242815,1715917834205,-1223.4996,0.00012379,2]
[327242816,1715917834215,-24272.89841545,0.00012379,2]
[327242817,1715917834236,-836.74867698,0.00012379,2]
[327242818,1715917834247,-500.05224,0.00012379,2]
[327242819,1715917834259,-1706.58886757,0.00012379,2]
[327242820,1715917834269,-794.2984,0.00012379,2]
[327242821,1715917834279,-7801.44521599,0.00012379,2]
[327242822,1715917834295,-29939.80458401,0.00012379,2]
[327242823,1715917834305,-400.0,0.000124,4]
[327242824,1715917834315,-1097.0,0.000124,2]
[327242825,1715917834325,-237.39,0.0001245,2]
[327242826,1715917834335,-716.8,0.0001245,2]
[327242827,1715917834345,-3641.504,0.00012471,2]
[327242828,1715917834355,-448.79802543,0.00012478,2]
[327242829,1715917834364,-522.6536688,0.00012478,2]
[327242830,1715917834374,-500.0,0.00012478,2]
[327242831,1715917834384,-304.07020786,0.00012478,2]
[327242832,1715917834394,-500.0,0.00012478,2]
[327242833,1715917834403,-154.57589496,0.00012478,2]
[327242834,1715917834413,-518.70701293,0.00012478,2]
[327242835,1715917834425,-500.0,0.00012478,2]
[327242836,1715917834434,-1027.66,0.00012478,2]